Posting Date,Expenditure Area,Supplier Name,Amount,Reason for expense,Expense Type
13/09/2021,Culture & Environment Services,A1 Pressure Washers Ltd, 9.90 ,replacement hose,Equipment / Furniture / Materials
12/08/2021,Culture & Environment Services,Amazon.Co.Uk, 24.98 ,Coffee for bearers room,Equipment / Furniture / Materials
23/08/2021,Culture & Environment Services,Amazon.Co.Uk, 9.97 ,toilet brushes for cleaners - not delivered refund to follow,Equipment / Furniture / Materials
20/09/2021,Culture & Environment Services,Amazon.Co.Uk, 9.07 ,New Microphone lead for chapel,Equipment / Furniture / Materials
06/09/2021,Culture & Environment Services,Amz,-3.32 ,refund for undelivered toilet brushes,Equipment / Furniture / Materials
06/09/2021,Culture & Environment Services,Amz,-6.65 ,refund for undelivered toilet brushes,Equipment / Furniture / Materials
17/09/2021,Culture & Environment Services,Amznmktplace, 29.94 ,VEHICLE USB CHARGES,Direct Transport Costs
04/08/2021,Culture & Environment Services,Amznmktplace, 16.65 ,Torch for emergency evac,Equipment / Furniture / Materials
09/08/2021,Culture & Environment Services,Amznmktplace, 66.62 ,Torches for emergency Evac,Equipment / Furniture / Materials
16/08/2021,Culture & Environment Services,Amznmktplace, 29.38 ,Events Keyrings for ABUS keys,Equipment / Furniture / Materials
24/08/2021,Culture & Environment Services,Amznmktplace, 9.96 ,Broom for sweeping cremators,Equipment / Furniture / Materials
25/08/2021,Culture & Environment Services,Amznmktplace, 14.16 ,Belt for masons cutter,Equipment / Furniture / Materials
27/08/2021,Culture & Environment Services,Amznmktplace, 8.00 ,"Mobile phone case and screen protector, Milk for FD's",Equipment / Furniture / Materials
10/09/2021,Culture & Environment Services,Amznmktplace, 39.97 ,Tensa Barrier ,Equipment / Furniture / Materials
14/09/2021,Culture & Environment Services,Amznmktplace, 39.00 ,Replenish Hand Gel,Equipment / Furniture / Materials
15/09/2021,Culture & Environment Services,Amznmktplace, 96.40 ,Black Armbands Additional - OLB,Equipment / Furniture / Materials
01/09/2021,Culture & Environment Services,Amznmktplace, 17.50 ,black disposable face coverings,Fixtures & Fittings
30/07/2021,Culture & Environment Services,Amznmktplace, 8.73 ,Mobile phone case and screen protector,Materials and Supplies - Miscellaneous
05/08/2021,Culture & Environment Services,Amznmktplace, 30.09 ,long handle fork,Materials and Supplies - Miscellaneous
27/08/2021,Culture & Environment Services,Amznmktplace, 8.73 ,"Mobile phone case and screen protector, Milk for FD's",Materials and Supplies - Miscellaneous
15/09/2021,Culture & Environment Services,Amznmktplace, 11.66 ,USB Extension Lead x 1,Materials and Supplies - Miscellaneous
16/09/2021,Culture & Environment Services,Amznmktplace, 116.48 ,2 x sets of ramps for vehicles,Materials and Supplies - Miscellaneous
09/09/2021,Culture & Environment Services,Amznmktplace, 7.91 ,Stationery for Waste Services,Stationery
09/09/2021,Culture & Environment Services,Amznmktplace, 31.25 ,Stationery for Waste Services,Stationery
16/09/2021,Culture & Environment Services,Amznmktplace, 101.50 ,PLAY AREA INSTALLATION BOOK - LANDSCAPE TEAM,Training Expenses
02/08/2021,Culture & Environment Services,Amznmktplace Amazon.Co.Uk, 70.78 ,Lights for Regent Bars,Catering/Beverages
06/09/2021,Culture & Environment Services,Amznmktplace Amazon.Co.Uk, 12.48 ,Lights,Fixtures & Fittings
16/09/2021,Culture & Environment Services,Argos Ltd, 15.83 ,MARKING CONES - WHITTON,Materials and Supplies - Miscellaneous
15/07/2021,Culture & Environment Services,B & Q 1315, 28.95 ,masonry supplies,Equipment / Furniture / Materials
01/09/2021,Culture & Environment Services,B & Q 1315, 27.50 ,Paint to cover graffiti,Equipment / Furniture / Materials
06/09/2021,Culture & Environment Services,B & Q 1315, 10.96 ,Bug Killer - CHANTRY HUB,Materials and Supplies - Miscellaneous
16/09/2021,Culture & Environment Services,B & Q 1315, 19.00 ,Ext Pole Roller Tray Liner Wood Metal Roller Frame,Materials and Supplies - Miscellaneous
16/09/2021,Culture & Environment Services,B & Q 1315, 3.75 ,Silver Gaffer Tape,Materials and Supplies - Miscellaneous
08/09/2021,Culture & Environment Services,B & Q 1315, 16.37 ,Concrete Mix - BRUNSWICK PARK,Miscellaneous Stock  - Purchases
30/08/2021,Culture & Environment Services,B&m 055 - Stowmarket, 9.99 ,Batteries,Materials and Supplies - Miscellaneous
20/08/2021,Culture & Environment Services,B&m 591 - Carr Road, 6.67 ,Hand Gel,Cleaning Supplies
06/09/2021,Culture & Environment Services,B&m 591 - Carr Road, 2.08 ,Cable ties,Equipment / Furniture / Materials
09/08/2021,Culture & Environment Services,B&m 591 - Carr Road, 2.92 ,Cable clips,Materials and Supplies - Miscellaneous
06/08/2021,Culture & Environment Services,B&m 591 - Carr Road, 4.22 ,Pens,Stationery
16/09/2021,Culture & Environment Services,Bag Agg Ltd, 9.50 ,Ballast - REPAIRS AT BUCKLESHAM PLAY AREA,Materials and Supplies - Miscellaneous
06/08/2021,Culture & Environment Services,Booker Limited Ipswich, 401.87 ,Stock for Corn Exchange,Catering/Beverages
11/08/2021,Culture & Environment Services,Booker Limited Ipswich, 63.02 ,Stock For Corn Exchange Bars,Catering/Beverages
09/09/2021,Culture & Environment Services,Booker Limited Ipswich, 14.34 ,Tea/coffee & sugar for Waste Services,Materials and Supplies - Miscellaneous
27/08/2021,Culture & Environment Services,Broxap Ltd, 107.00 ,Rugby sockets,Materials and Supplies - Miscellaneous
09/09/2021,Culture & Environment Services,Cannon Access Ltd, 330.00 ,Hire of MEWP to undertake periodic LOLER inspections,Equipment Hire
20/08/2021,Culture & Environment Services,Cgs Stores Limited, 464.70 ,Hand Sanitizer Units,Equipment / Furniture / Materials
17/08/2021,Culture & Environment Services,Collier & Catchpole, 9.30 ,Long rake plum slate,Materials and Supplies - Miscellaneous
07/09/2021,Culture & Environment Services,Collier & Catchpole, 245.00 ,membrane for play area,Miscellaneous Stock  - Purchases
11/08/2021,Culture & Environment Services,Crystal Health Group Limi, 145.00 ,HR services,Equipment / Furniture / Materials
17/08/2021,Culture & Environment Services,Crystal Health Group Limi, 41.25 ,HR services,Equipment / Furniture / Materials
13/09/2021,Culture & Environment Services,Dvla Vehicle Tax, 277.50 ,VEHICLE TAX FOR AE64 SNF,Direct Transport Costs
13/09/2021,Culture & Environment Services,Dvla Vehicle Tax, 277.50 ,VEHICLE TAX FOR AE64 SNJ,Direct Transport Costs
13/09/2021,Culture & Environment Services,Dvla Vehicle Tax, 277.50 ,VEHICLE TAX FOR AE64 SNK,Direct Transport Costs
13/09/2021,Culture & Environment Services,Dvla Vehicle Tax, 277.50 ,VEHICLE TAX FOR AE64 SNN,Direct Transport Costs
13/09/2021,Culture & Environment Services,Dvla Vehicle Tax, 277.50 ,VEHICLE TAX FOR AE64 SNU,Direct Transport Costs
13/09/2021,Culture & Environment Services,Dvla Vehicle Tax, 277.50 ,VEHICLE TAX FOR AE64 SNV,Direct Transport Costs
13/09/2021,Culture & Environment Services,Dvla Vehicle Tax, 277.50 ,VEHICLE TAX FOR AE64 SNX,Direct Transport Costs
13/09/2021,Culture & Environment Services,Dvla Vehicle Tax, 277.50 ,VEHICLE TAX FOR AE64 SNY,Direct Transport Costs
13/09/2021,Culture & Environment Services,Dvla Vehicle Tax, 277.50 ,VEHICLE TAX FOR AE64 SNZ,Direct Transport Costs
13/09/2021,Culture & Environment Services,Dvla Vehicle Tax, 277.50 ,VEHICLE TAX FOR AV60 HHL,Direct Transport Costs
13/09/2021,Culture & Environment Services,Dvla Vehicle Tax, 277.50 ,VEHICLE TAX FOR AV61 RHU,Direct Transport Costs
06/09/2021,Culture & Environment Services,Ebay O*22-07553-96012, 37.46 ,Safety Rated Surface Tray - UPS Batteries,Equipment / Furniture / Materials
16/08/2021,Culture & Environment Services,Euroffice.Co.Uk, 68.33 ,Boxed Water for Summertime Ipswich,Equipment / Furniture / Materials
10/09/2021,Culture & Environment Services,Fc Flags, 90.45 ,Balcony Flags OLB,Equipment / Furniture / Materials
24/09/2021,Culture & Environment Services,Fenland Leisure Products, 395.00 ,Replacement grass matts for play equipment,Miscellaneous Stock  - Purchases
17/09/2021,Culture & Environment Services,Groundsman Tools And Supp, 102.90 ,Various grounds maintenance tools,Materials and Supplies - Miscellaneous
20/09/2021,Culture & Environment Services,Groundsman Tools And Supp, 502.63 ,various grounds maintenance tools and equipment,Materials and Supplies - Miscellaneous
30/09/2021,Culture & Environment Services,Halfords 0393, 9.15 ,Half round files x 2,Materials and Supplies - Miscellaneous
20/09/2021,Culture & Environment Services,Home Bargains, 9.93 ,Handwash/cleaning products - ALL HUBS,Cleaning Supplies
03/09/2021,Culture & Environment Services,Honey Bros, 430.63 ,Chainsaw - ARB TEAM,Equipment / Furniture / Materials
16/06/2021,Culture & Environment Services,Honey Bros,-15.93 ,refund,Materials and Supplies - Miscellaneous
07/07/2021,Culture & Environment Services,Horticultural Sppls Ltd, 363.11 ,rose treatment,Materials and Supplies - Miscellaneous
30/08/2021,Culture & Environment Services,Horticultural Sppls Ltd, 9.51 ,Bottle of Bug Killer Liquid,Materials and Supplies - Miscellaneous
16/09/2021,Culture & Environment Services,Horticultural Sppls Ltd, 37.49 ,Measuring Jugs - WHITTON,Materials and Supplies - Miscellaneous
03/09/2021,Culture & Environment Services,Hussey Knights Ltd, 25.46 ,Copy of plans to A2 scale for Brunswick Rd play area,Miscellaneous Stock  - Purchases
14/09/2021,Culture & Environment Services,Hussey Knights Ltd, 8.33 ,SITE MAPS - BRUNSWICK PARK,Miscellaneous Stock  - Purchases
17/09/2021,Culture & Environment Services,Indespension, 72.41 ,breakaway cables and electric connections,Equipment / Furniture / Materials
24/09/2021,Culture & Environment Services,Indespension, 55.83 ,Replacement tipping switch for trailer,Equipment / Furniture / Materials
24/08/2021,Culture & Environment Services,Ipswich Entertainment,-0.01 ,Card Machine Test,Catering/Beverages
24/08/2021,Culture & Environment Services,Ipswich Entertainment, 0.01 ,Card Machine test,Catering/Beverages
08/09/2021,Culture & Environment Services,Ironmongerydirect Ltd, 38.95 ,male / felmale toilet signs for Alex Park,Materials and Supplies - Miscellaneous
15/09/2021,Culture & Environment Services,Jayar Car Parts, 5.50 ,10 x 12V 5W Car Batteries,Materials and Supplies - Miscellaneous
04/08/2021,Culture & Environment Services,Jdpipes," 3,650.52 ",grave digging equipment,Materials and Supplies - Miscellaneous
16/09/2021,Culture & Environment Services,Kedel Ltd, 445.41 ,rose stakes,Materials and Supplies - Miscellaneous
12/08/2021,Culture & Environment Services,Kent Blaxill And C, 76.19 ,Bench staining materials,Equipment / Furniture / Materials
27/08/2021,Culture & Environment Services,Kings, 25.00 ,4 x Mortice Keys cut,Materials and Supplies - Miscellaneous
07/09/2021,Culture & Environment Services,Kings, 25.00 ,3 x Cylinder and 1 x Mortice Keys cut,Materials and Supplies - Miscellaneous
15/09/2021,Culture & Environment Services,Kings, 12.50 ,3 x cylinder keys cut,Materials and Supplies - Miscellaneous
29/09/2021,Culture & Environment Services,Kings, 10.83 ,Mortice x 1 and Cylinder x 1 keys cut,Materials and Supplies - Miscellaneous
09/09/2021,Culture & Environment Services,Lumberjacks, 18.03 ,POST MIX - SHERRINGTON REC PA,Equipment / Furniture / Materials
09/09/2021,Culture & Environment Services,Lumberjacks, 36.07 ,Postmix - SHERRINGTON REC FENCE REPAIRS,Equipment / Furniture / Materials
13/09/2021,Culture & Environment Services,Lumberjacks, 45.16 ,TIMBER - SHERRINGTON REC FENCE REPAIR,Equipment / Furniture / Materials
07/09/2021,Culture & Environment Services,Machine Mart Ltd, 51.96 ,Various Tools - CHANTRY HUB,Materials and Supplies - Miscellaneous
24/08/2021,Culture & Environment Services,Nhbs Ltd, 216.96 ,Bug Hunting Pots,Materials and Supplies - Miscellaneous
09/09/2021,Culture & Environment Services,Northernarbsupplies, 36.00 ,Cost to regrind chipper blades,Materials and Supplies - Miscellaneous
03/09/2021,Culture & Environment Services,Orwell Motor Cycles Lt, 260.80 ,Crash Helmets for weed spraying,Equipment / Furniture / Materials
03/09/2021,Culture & Environment Services,Orwell Motor Cycles Lt, 82.49 ,OIL for vehicle - WHITTON HUB,Equipment Hire
27/08/2021,Culture & Environment Services,Orwell Motor Cycles Lt, 44.99 ,crash helmet for quad bike training,Materials and Supplies - Miscellaneous
25/08/2021,Culture & Environment Services,Parcel2go.Com Ltd, 7.03 ,Postage to send off chipper blades for sharpening,Stationery
27/08/2021,Culture & Environment Services,Paypal, 94.08 ,PPE trousers for Ranger team,Clothing / Uniform & Laundry
08/09/2021,Culture & Environment Services,Paypal, 89.50 ,Arb gloves for winter,Clothing / Uniform & Laundry
16/09/2021,Culture & Environment Services,Paypal, 44.00 ,Arb gripper gloves,Clothing / Uniform & Laundry
10/09/2021,Culture & Environment Services,Paypal, 16.67 ,Flag Anti Fray,Equipment / Furniture / Materials
10/09/2021,Culture & Environment Services,Paypal, 12.49 ,Heavy Duty Laminator Pouches - External Signage,Equipment / Furniture / Materials
13/09/2021,Culture & Environment Services,Paypal, 35.00 ,Replenish Back Surgical Masks ,Equipment / Furniture / Materials
10/09/2021,Culture & Environment Services,Paypal, 70.43 ,Additional Large Poster Frames - Crush Hall Sanitation,Fixtures & Fittings
23/08/2021,Culture & Environment Services,Paypal,-475.00 ,credit by paypal for goods not received,Materials and Supplies - Miscellaneous
08/09/2021,Culture & Environment Services,Paypal, 202.00 ,12 x rolls of hazard tape,Materials and Supplies - Miscellaneous
08/09/2021,Culture & Environment Services,Paypal, 114.42 ,chain saw oil,Materials and Supplies - Miscellaneous
09/09/2021,Culture & Environment Services,Paypal, 275.68 ,Numerous Arb equipment,Materials and Supplies - Miscellaneous
08/09/2021,Culture & Environment Services,Paypal, 62.52 ,TRG Training Online Sign Up,Miscellaneous Expenses
06/09/2021,Culture & Environment Services,Pirtek Ipswich, 101.63 ,Hydraulic couplings for Auger,Miscellaneous Stock  - Purchases
08/09/2021,Culture & Environment Services,Pirtek Ipswich, 50.52 ,Hydraulic coupling for digger,Miscellaneous Stock  - Purchases
27/08/2021,Culture & Environment Services,Pirtek Ipswich, 84.80 ,Oil for Batwing Mower - CHANTRY HUB,Parks Vehicle Costs
29/09/2021,Culture & Environment Services,Post Office Counter, 10.95 ,Return of incorrect body armour,Equipment / Furniture / Materials
02/09/2021,Culture & Environment Services,Poundland Ltd 1344, 1.83 ,Suction pads for EV show (vehicle banners),Equipment / Furniture / Materials
01/09/2021,Culture & Environment Services,Poundland Ltd 1719, 1.67 ,Batterys,Stationery
06/09/2021,Culture & Environment Services,Rs Components, 104.32 ,UPS Spot Charger & Winter Sample,Miscellaneous Expenses
04/08/2021,Culture & Environment Services,Safetysuppl, 17.61 ,Smoke in a can,Fixtures & Fittings
20/08/2021,Culture & Environment Services,Sainsburys S/mkts, 3.75 ,Lemons for bars,Catering/Beverages
03/09/2021,Culture & Environment Services,Sainsburys S/mkts, 1.82 ,Milk for Waste Services,Materials and Supplies - Miscellaneous
08/09/2021,Culture & Environment Services,Sainsburys S/mkts, 2.72 ,Milk for Waste Services,Materials and Supplies - Miscellaneous
15/09/2021,Culture & Environment Services,Sainsburys S/mkts, 14.56 ,Tea/coffee/mild for Waste Services,Materials and Supplies - Miscellaneous
10/09/2021,Culture & Environment Services,Screwfix Dir Ltd, 33.32 ,Secure straps for vehicle - CHANTRY HUB,Materials and Supplies - Miscellaneous
03/09/2021,Culture & Environment Services,Screwfix Dir Ltd, 11.97 ,Cutting disks for stone cutter,Miscellaneous Stock  - Purchases
20/09/2021,Culture & Environment Services,Screwfix Direct, 49.14 ,PPE for working with the Arbs,Equipment / Furniture / Materials
15/09/2021,Culture & Environment Services,Screwfix Direct, 39.57 ,Chainsaw Chain Oil 5L x 2,Materials and Supplies - Miscellaneous
30/09/2021,Culture & Environment Services,Screwfix Direct, 16.65 ,Garden Furniture Oil 1L clear x 2,Materials and Supplies - Miscellaneous
20/08/2021,Culture & Environment Services,Sgs Engineering UK L, 271.98 ,Vehicle Dollys,Equipment / Furniture / Materials
06/09/2021,Culture & Environment Services,Sp * Meters Direct, 31.29 ,Replacement shelving,Fixtures & Fittings
02/09/2021,Culture & Environment Services,Sq *ncd Equipment Limited, 297.32 ,Auger drill bit,Miscellaneous Stock  - Purchases
02/09/2021,Culture & Environment Services,Sq *ncd Equipment Limited, 833.33 ,Auger for digger,Miscellaneous Stock  - Purchases
02/09/2021,Culture & Environment Services,Sq *ncd Equipment Limited, 833.33 ,Auger for digger,Miscellaneous Stock  - Purchases
17/08/2021,Culture & Environment Services,Staples, 46.49 ,Boxed water for Summertime Ipswich,Equipment / Furniture / Materials
09/09/2021,Culture & Environment Services,Suffolk County Council, 75.00 ,SKIP PERMIT FOR WASTESAVER,Licence Fees - Highways
17/09/2021,Culture & Environment Services,Suffolk County Council, 22.00 ,death cert.,Materials and Supplies - Miscellaneous
16/09/2021,Culture & Environment Services,Suffolk Fastener (Ipsw, 14.70 ,Assorted nuts/bolts - CHANTRY HUB,Materials and Supplies - Miscellaneous
16/09/2021,Culture & Environment Services,Suttons B2c Moto, 363.07 ,Bulbs for ex-bedding areas,Miscellaneous Stock  - Purchases
09/08/2021,Culture & Environment Services,Tesco Store 3240, 21.67 ,STock for Regent Bars,Catering/Beverages
25/08/2021,Culture & Environment Services,Tesco Store 3240, 7.50 ,Lemons for Bars,Catering/Beverages
11/08/2021,Culture & Environment Services,The Range, 9.63 ,pest control,Materials and Supplies - Miscellaneous
02/09/2021,Culture & Environment Services,The Windscreen Co, 96.00 ,CHIP REPAIRS INC CALL OUT FEE AY69 OJE,Direct Transport Costs
21/09/2021,Culture & Environment Services,The Windscreen Co, 390.00 ,REPLACEMENT WINDSCREEN FOR LK70 EGE,Direct Transport Costs
16/09/2021,Culture & Environment Services,The Windscreen Co, 185.00 ,WINDSCREEN REPAIR - CHANTRY HUB,Parks Vehicle Costs
13/09/2021,Culture & Environment Services,Timpson Ltd, 21.25 ,key cutting for bin stores,Materials and Supplies - Miscellaneous
06/09/2021,Culture & Environment Services,Toolstation Ltd, 54.25 ,Tools for the Landscape Team,Miscellaneous Stock  - Purchases
16/08/2021,Culture & Environment Services,Toolstation Uk, 13.82 ,Batteries for fire torches,Materials and Supplies - Miscellaneous
21/09/2021,Culture & Environment Services,Trees-Online.Co.Uk, 252.50 ,Honeysuckle Plants x 101,Materials and Supplies - Miscellaneous
27/08/2021,Culture & Environment Services,Tvlicensing.Co.Uk, 159.00 ,Purchase of TV Licence for the Regent Theatre,Licences & Other Fees
10/09/2021,Culture & Environment Services,Victoria Nurseries, 78.19 ,BULBS - CHRISTCHURCH PARK,Materials and Supplies - Miscellaneous
06/09/2021,Culture & Environment Services,Vinylwareho, 30.82 ,Vinyl sticker for kiosk counter,Materials and Supplies - Miscellaneous
09/09/2021,Culture & Environment Services,Wh Smith, 8.32 ,Maps for Waste Services,Stationery
04/08/2021,Culture & Environment Services,Wickes Ipswich, 6.96 ,replacement tap,Equipment / Furniture / Materials
11/08/2021,Culture & Environment Services,Wickes Ipswich, 265.65 ,grave digging equipment,Materials and Supplies - Miscellaneous
20/08/2021,Culture & Environment Services,Wickes Ipswich, 34.89 ,timber and gate fixings,Materials and Supplies - Miscellaneous
07/09/2021,Culture & Environment Services,Wickes Ipswich, 8.83 ,Wasp Nest Foam - CHANTRY HUB,Materials and Supplies - Miscellaneous
17/09/2021,Culture & Environment Services,Wickes Ipswich, 3.58 ,Cement - CHANTRY HUB,Materials and Supplies - Miscellaneous
17/09/2021,Culture & Environment Services,Wickes Ipswich, 34.79 ,Rapid Cement - REPAIRS AT BUCKLESHAM,Materials and Supplies - Miscellaneous
24/08/2021,Culture & Environment Services,Wildcare Ltd, 321.45 ,Pond Dipping and Bug Hunting Nets,Materials and Supplies - Miscellaneous
17/09/2021,Culture & Environment Services,Wildwood Trust, 62.50 ,Training,Training Expenses
17/09/2021,Culture & Environment Services,Wilko Retail Limited, 10.83 ,Replacement of equipment for Shopmobility Office,Equipment - Repairs
06/09/2021,Culture & Environment Services,Workwear Express, 33.07 ,Purchase of High Viz vests for crew.,Equipment / Furniture / Materials
20/08/2021,Culture & Environment Services,Www Lsengineers Co Uk, 7.81 ,brushcutter spares,Equipment / Furniture / Materials
06/09/2021,Culture & Environment Services,Www.Banneruk.Com, 53.63 ,Stationery for Waste Services,Stationery
18/08/2021,Culture & Environment Services,Www.Bunzlcleaningsuppl, 51.55 ,Cleaning Products,Cleaning Supplies
06/09/2021,Culture & Environment Services,Www.Buzzcateringsuppli, 52.64 ,Tea Towels for the polycarbinates,Cleaning Supplies
15/09/2021,Culture & Environment Services,Www.Licencecheck.Co.Uk," 1,050.00 ",250 credits for DAVIS licence checks,Direct Transport Costs
27/09/2021,Culture & Environment Services,Www.The Batteryshop.Co, 39.95 ,Battery for machine at Grafton,Equipment / Furniture / Materials
20/08/2021,Culture & Environment Services,Zendesk Inc, 74.78 ,Ticketing Helpdesk Monthly Fee,Miscellaneous Expenses
30/08/2021,Development,Aldi 776 104, 1.41 ,cleaning sponges,Premises Costs - Miscellaneous
06/09/2021,Development,Bdc Paye Webpay, 100.00 ,Partnership Inspection,Non Contracted_Professional Services
13/09/2021,Development,Challis Water Control Vt, 669.50 ,Shower heads for East Villa,Reactive Repairs
03/09/2021,Development,Ds Smith Epack, 96.99 ,recycling boxes for Grafton House,Cleaning Supplies
14/09/2021,Development,Fast Key Services Limi, 16.07 ,new keys ,Equipment / Furniture / Materials
30/08/2021,Development,Mailcoms, 139.90 ,franking ink,Postage Costs
02/09/2021,Development,Royal Mail Charges, 1.25 ,"fee to pay postage, internal recharge via ipost",Postage Costs
07/09/2021,Development,Royal Mail Charges, 1.25 ,fee to pay recharged elections,Postage Costs
09/09/2021,Development,Royal Mail Charges, 1.67 ,fee to pay recharged elections,Postage Costs
14/09/2021,Development,Royal Mail Charges, 1.67 ,fee to pay recharged elections,Postage Costs
01/09/2021,Development,The Chartered Associatio, 225.00 ,21/22 Membership,Employee Expenses
05/08/2021,Development,Www Urbanprinting Co Uk," 1,091.97 ",Pull up banners for various sites,Reactive Repairs
21/09/2021,Development,"Www,eastsuffolk.Gov.Uk", 96.00 ,Partnership Inspection,Non Contracted_Professional Services
30/09/2021,Development,"Www,eastsuffolk.Gov.Uk", 384.00 ,Partnership Inspection,Non Contracted_Professional Services
29/09/2021,Development,Www.Labc.Uk.Com, 75.00 ,DS Training ,Training Expenses
29/09/2021,Development,Www.Labc.Uk.Com, 75.00 ,DS Training ,Training Expenses
09/09/2021,Finance & Revenues,Boots Vouchers," 3,010.00 ",301 Prepaid Boots Flu Vaccination Vouchers,Materials and Supplies - Miscellaneous
13/09/2021,Finance & Revenues,Royal Mail Charges, 1.25 ,Royal Mail Postage surcharges,Postage Costs
13/09/2021,Finance & Revenues,Royal Mail Charges, 1.67 ,Royal Mail Postage surcharges,Postage Costs
13/09/2021,Finance & Revenues,Royal Mail Charges, 1.67 ,Royal Mail Postage surcharges,Postage Costs
15/09/2021,Finance & Revenues,Royal Mail Charges, 1.25 ,Royal Mail Surcharges,Postage Costs
29/09/2021,Finance & Revenues,Royal Mail Charges, 1.67 ,Royal Mail Surcharges,Postage Costs
03/09/2021,Finance & Revenues,Royal Mail Group Ltd, 9.46 ,Royal Mail Surcharge.,Postage Costs
08/09/2021,Finance & Revenues,Service Fees - Fraedom Pty Ltd, 383.15 ,Fraedom Card Fees 1/8/21 to 31/8/21,Computer Software - Maintenance
20/09/2021,Finance & Revenues,Sight And Sound Techno, 379.45 ,ZoomText Reader,Computer Equipment - Purchase
22/09/2021,Finance & Revenues,Southend County, 60.50 ,NDR Summons,Legal Services & Fees
03/09/2021,Housing & Community Services,Amazon Prime, 7.99 ,Amazon Prime,Equipment / Furniture / Materials
28/09/2021,Housing & Community Services,Amazon.Co.Uk, 6.22 ,Stationery,Stationery
21/09/2021,Housing & Community Services,Amznmktplace, 17.95 ,keytags for stores,Equipment / Furniture / Materials
22/09/2021,Housing & Community Services,Amznmktplace, 20.82 ,Wall Tile Hole saw kit ,Equipment / Furniture / Materials
06/09/2021,Housing & Community Services,Amznmktplace, 44.45 ,Arts and craft stuff for Navigator client,Specific Campaigns / Projects expenditure
17/09/2021,Housing & Community Services,Amznmktplace, 39.59 ,Stylus pens for tablets/labels,Telecommunication Costs - Mobiles
23/09/2021,Housing & Community Services,Amznmktplace Amazon.Co.Uk, 94.99 ,Fishing gear for Navigator client,Specific Campaigns / Projects expenditure
07/09/2021,Housing & Community Services,Argos Ltd, 49.99 ,Amazon tablet for navigator client,Specific Campaigns / Projects expenditure
07/09/2021,Housing & Community Services,Argos Ltd, 216.98 ,TV and tv stand for Navigator client,Specific Campaigns / Projects expenditure
21/09/2021,Housing & Community Services,Argos Ltd, 9.99 ,Kettle for Navigator client,Specific Campaigns / Projects expenditure
23/09/2021,Housing & Community Services,Argos Ltd, 357.98 ,"Various household items, from the Navigator personal budget",Specific Campaigns / Projects expenditure
27/09/2021,Housing & Community Services,Argos Ltd, 10.00 ,Duvet and pillow for Navigator client,Specific Campaigns / Projects expenditure
08/09/2021,Housing & Community Services,B&m 599 - Anglia, 25.96 ,Mops and buckets and brooms for Micro homes,Specific Campaigns / Projects expenditure
18/08/2021,Housing & Community Services,Cpw Locksmiths And Securi, 282.00 ,78/84 Morecambe replace euro cylinders,HRA Special Repairs & Maintenance
25/08/2021,Housing & Community Services,Cpw Locksmiths And Securi, 120.00 ,recondition l& service lock for Wingate house,HRA Special Repairs & Maintenance
03/09/2021,Housing & Community Services,Cpw Locksmiths And Securi, 80.00 ,repair/replace/renew lock/keys to sheltered properties,HRA Special Repairs & Maintenance
03/09/2021,Housing & Community Services,Graham, 50.65 ,4147772 Soil stack,Materials and Supplies - Miscellaneous
15/09/2021,Housing & Community Services,Instit Of Occptnl Safe, 133.00 ,IOSH renewal ,Non Contracted_Professional Services
06/09/2021,Housing & Community Services,Keep It Personal Ltd, 20.35 ,Tenant of the year award,Miscellaneous Expenses
01/09/2021,Housing & Community Services,Post Office Counter, 8.32 ,return of exploding shower for investigation,Postage Costs
07/09/2021,Housing & Community Services,Screwfix Direct, 24.97 ,2x Ratchet Straps & 1.5T Digger,Equipment / Furniture / Materials
29/09/2021,Housing & Community Services,Screwfix Direct, 33.32 ,Saw Blade 165x60mm MC289 Hireshop,Equipment / Furniture / Materials
18/08/2021,Housing & Community Services,Screwfix Direct, 34.95 ,3 keysafe's sheltered scheme ,HRA Special Repairs & Maintenance
01/09/2021,Housing & Community Services,Tesco Store 2748, 39.98 ,2 x mobile phones for navigator clients,Specific Campaigns / Projects expenditure
08/09/2021,Housing & Community Services,Tesco Store 2748, 39.98 ,2 x mobile phones for navigator client,Specific Campaigns / Projects expenditure
07/09/2021,Housing & Community Services,Tesco Store 3240, 10.00 ,8 Bottles of Washing Up Liquid,Premises Costs - Miscellaneous
21/09/2021,Housing & Community Services,Toolstation Uk, 9.98 ,Strimmer wire for petrol strimmer hireshop,Equipment / Furniture / Materials
16/09/2021,Housing & Community Services,Travelodge Gb0000, 66.66 ,Cancellation fee,Services for Clients
07/09/2021,Housing & Community Services,Value Products Ltd, 29.20 ,4x fire door signs veh park side,Premises Costs - Miscellaneous
17/09/2021,Housing & Community Services,Www.Banneruk.Com, 8.76 ,Stationery,Stationery
21/09/2021,Housing & Community Services,Www.Banneruk.Com, 141.89 ,Sstationery,Stationery
24/09/2021,Housing & Community Services,Www.Banneruk.Com, 18.89 ,Stationery,Stationery
30/09/2021,Housing & Community Services,Www.Banneruk.Com, 39.96 ,Stationery,Stationery
27/09/2021,Housing & Community Services,Www.Htsspares.Com, 49.56 ,Water Suppression tap for SW063 Disc Cutter ,Equipment / Furniture / Materials
01/09/2021,People & Governance,Amazon.Co.Uk, 146.53 ,Labelling machine for automated reception project,Computer Equipment - Purchase
16/09/2021,People & Governance,Amazon.Co.Uk, 251.00 ,REDACTED,Specific Campaigns / Projects expenditure
13/09/2021,People & Governance,Amznmktplace Amazon.Co.Uk, 16.65 ,Charger for Lenovo ThinkPad,Telecommunication Costs - Business Phones
21/09/2021,People & Governance,Asda Stores Ltd, 239.00 ,REDACTED,Specific Campaigns / Projects expenditure
14/09/2021,People & Governance,Cartridgepeople.Com, 39.16 ,Councillor Ink Cartridges,Computer Consumables and other Minor IT costs
20/09/2021,People & Governance,Dri*, 34.79 ,PDF software,Computer Software - Purchase
24/09/2021,People & Governance,Dri*, 35.10 ,Sarah Howe's PDF software,Computer Software - Purchase
08/09/2021,People & Governance,Ebuyer (Uk) Ltd, 319.98 ,Laserjet HP Printer,Equipment / Furniture / Materials
01/09/2021,People & Governance,Google, 27.13 ,API usage,Computer Software - Purchase
06/09/2021,People & Governance,Ipserv, 4.58 ,parking,Miscellaneous Functions & Events
09/09/2021,People & Governance,Marks&spencer Plc Saca, 9.60 ,999 event tea coffee biscuits milk..,Miscellaneous Functions & Events
03/09/2021,People & Governance,Paypal, 25.98 ,Domain renewals,Computer Consumables and other Minor IT costs
02/09/2021,People & Governance,Referencehub.Com, 3.60 ,Reference fee for stage employee to be recharged,Recruitment Costs
09/09/2021,People & Governance,Sainsburys S/mkts, 1.62 ,999 event sugar x2,Miscellaneous Functions & Events
17/09/2021,People & Governance,Siteground Hosting, 324.00 ,Cloud hosting renewal,Equipment / Furniture / Materials
03/09/2021,People & Governance,Staff Checks, 1.20 ,Reference fee for stage employee to be recharged,Recruitment Costs
09/09/2021,People & Governance,Www.Accounts@iia.Org.U," 1,334.40 ",IIA training courses for CPD,Training Expenses
13/09/2021,People & Governance,Www.Accounts@iia.Org.U, 298.80 ,IIA training courses for CPD,Training Expenses
13/09/2021,People & Governance,Www.Accounts@iia.Org.U, 600.00 ,IIA training courses for CPD,Training Expenses
03/09/2021,People & Governance,Www.Voucherexpress.Co., 215.00 ,REDACTED,Specific Campaigns / Projects expenditure
15/09/2021,People & Governance,Zoom.Gbp, 23.98 ,Zoom Service Subscription,Computer Consumables and other Minor IT costs
10/08/2021,Sports & Programmes,Amazon.Co.Uk, 59.67 ,Versapak - Float Bags,Equipment / Furniture / Materials
13/09/2021,Sports & Programmes,Amazon.Co.Uk, 58.41 ,Junior defib pads,Equipment / Furniture / Materials
23/09/2021,Sports & Programmes,Amznmktplace, 4.99 ,Rust remover,Cleaning Supplies
27/09/2021,Sports & Programmes,Amznmktplace, 16.67 ,High level duster with extended pole,Cleaning Supplies
02/09/2021,Sports & Programmes,Amznmktplace, 8.16 ,Hook and loops for posters,Equipment / Furniture / Materials
09/09/2021,Sports & Programmes,Amznmktplace, 24.07 ,Extension lead - villa resident to charge mobility scooter,Specific Campaigns / Projects expenditure
19/08/2021,Sports & Programmes,Amznmktplace Amazon.Co.Uk, 1.01 ,First aid stickers for back stage first aid box,Equipment / Furniture / Materials
21/09/2021,Sports & Programmes,Appliancedirect Co, 53.55 ,Pay difference to order relating to PO 41358147 for kettles,Specific Campaigns / Projects expenditure
06/09/2021,Sports & Programmes,B & Q 1315, 31.56 ,Squash court flooring. Kitchen sink unblocker.,Equipment / Furniture / Materials
15/09/2021,Sports & Programmes,C.E.F. (Ipswich), 20.70 ,red alarm reset fobs,Equipment / Furniture / Materials
15/09/2021,Sports & Programmes,Chartered Institute Of En, 65.00 ,Beauty training,Training Expenses
08/09/2021,Sports & Programmes,Defib Pad, 73.00 ,De Fib Pads x 2,Equipment / Furniture / Materials
16/09/2021,Sports & Programmes,Eb *applying Root Caus, 100.00 ,Training ,Training Expenses
20/08/2021,Sports & Programmes,Facebk *8ztff778j2, 19.88 ,Social media advertising,Advertising/Publicity
25/08/2021,Sports & Programmes,Firstaid4less.Co.Uk, 94.10 ,Supplies for first aid boxes.,Materials and Supplies - Miscellaneous
16/08/2021,Sports & Programmes,Gls Educational Su, 124.95 ,Hypo Pool Chems,Cleaning Supplies
02/09/2021,Sports & Programmes,Google Ads1746131584, 86.67 ,Power of Stories Google Ads August 2021,Advertising/Publicity
26/08/2021,Sports & Programmes,Mailchimp, 226.84 ,Email marketing,Subscriptions - Service Related
13/09/2021,Sports & Programmes,Mailchimp, 510.22 ,Mailchimp,Subscriptions - Service Related
20/09/2021,Sports & Programmes,Makro Self Service Ipswic, 49.46 ,coffee etc for staff use,Miscellaneous Expenses
15/09/2021,Sports & Programmes,Medisupplies Ltd, 72.62 ,First Aid Supplies,Materials and Supplies - Miscellaneous
02/09/2021,Sports & Programmes,Oakwood Corporation Lt," 1,066.40 ",till/ PDQ rolls,Stationery
18/08/2021,Sports & Programmes,Post Office Counter, 3.50 ,Corn Exchange radios sent to Anglian Radios for repair,Equipment / Furniture / Materials
31/08/2021,Sports & Programmes,Rs Components, 48.27 ,"Velcro tape, rechargeable batters, hdmi cable.",Equipment / Furniture / Materials
15/09/2021,Sports & Programmes,Screwfix Direct, 9.22 ,batteries for pool cover,Equipment / Furniture / Materials
02/09/2021,Sports & Programmes,Security Industry, 158.33 ,SIA License Renewal for controller 17,Licences & Other Fees
13/09/2021,Sports & Programmes,Shopify* 119661321, 21.60 ,Made in Suffolk online shop,Advertising/Publicity
25/08/2021,Sports & Programmes,Sp * Rlss UK Shop, 778.10 ,training aids,Training Expenses
13/09/2021,Sports & Programmes,Surveymonkey, 320.00 ,Annual Survey Monkey subscription,Subscriptions - Service Related
19/08/2021,Sports & Programmes,Timpson Ltd, 15.92 ,Keys ,Equipment / Furniture / Materials
13/08/2021,Sports & Programmes,Tvlicensing.Co.Uk, 159.00 ,Annual TV license,Licences & Other Fees
30/08/2021,Sports & Programmes,Tvlicensing.Co.Uk, 132.50 ,Annual TV Licence renewal Crown Pools,Licences & Other Fees
24/08/2021,Sports & Programmes,Value Products Ltd, 204.50 ,first aid training,Training Expenses
14/09/2021,Sports & Programmes,Waitrose Direct, 33.29 ,Flowers ,Equipment / Furniture / Materials
17/09/2021,Sports & Programmes,Wh Smith, 14.15 ,Maintenance diary and calender,Equipment / Furniture / Materials
24/09/2021,Sports & Programmes,Wickes Ipswich, 46.46 ,Equipment to paint the Regent stage,Equipment / Furniture / Materials
11/08/2021,Sports & Programmes,Www.Cipr.Co.Uk, 220.83 ,CIPR membership,Subscriptions - Service Related
23/09/2021,Sports & Programmes,Www.Furnitureatwork.Co, 474.00 ,New Training Room - Chairs F/ST,Specific Campaigns / Projects expenditure
13/09/2021,Sports & Programmes,Www.Ofcom.Org.Uk, 75.00 ,Two-way radio licence,Licences & Other Fees
16/08/2021,Sports & Programmes,Www.Stepsandstillages.Co, 720.00 ,Hypo Drip Traps Pool Plant,Equipment / Furniture / Materials
